bitfinex-derivatives/quotes_BTCF0:USTF0_20250728
["timestamp","ask_amount","ask_price","bid_price","bid_amount"]
[1753729679352,0.99662331,118240.0,118230.0,1.0576]
[1753729679753,0.99662331,118240.0,118230.0,1.30438]
[1753729680256,0.99662331,118240.0,118230.0,1.33456]
[1753729680461,0.99662331,118240.0,118230.0,1.35708305]
[1753729680861,1.31492632,118240.0,118230.0,1.06465305]
[1753729681060,1.31492632,118240.0,118230.0,0.36345305]
[1753729681357,0.4768506,118220.0,118210.0,0.2198799]
[1753729681557,0.95435361,118220.0,118210.0,0.2198799]
[1753729681761,0.95435361,118220.0,118210.0,0.9207599]
[1753729682163,0.95435361,118220.0,118210.0,0.82236]
[1753729682366,0.96818008,118220.0,118210.0,0.82232]
[1753729682562,0.96818008,118220.0,118210.0,0.89714]
[1753729682964,0.96818008,118220.0,118200.0,1.38396292]
[1753729682965,0.6360649,118210.0,118200.0,1.2374699]
[1753729683160,0.96819438,118210.0,118200.0,1.9392299]
[1753729683357,0.96819438,118210.0,118200.0,1.99147]
[1753729683566,0.96819438,118210.0,118200.0,2.16343]
[1753729688268,0.96819438,118210.0,118200.0,2.42633]
[1753729691568,0.85139438,118210.0,118200.0,2.42633]
[1753729691770,0.96819438,118210.0,118200.0,2.42633]
[1753729694276,0.96819438,118210.0,118200.0,2.4489694]
[1753729695674,0.96819438,118210.0,118200.0,2.1860694]
[1753729696375,0.96819438,118210.0,118200.0,2.1850694]
[1753729696577,0.96819438,118210.0,118200.0,2.1602428]
[1753729696777,1.28649739,118210.0,118200.0,1.0574626]
[1753729696975,0.3600791,118200.0,118190.0,0.15687933]
[1753729697277,1.28651159,118200.0,118190.0,1.06975298]
[1753729698579,1.28651159,118200.0,118190.0,0.82297298]
[1753729698974,1.28651159,118200.0,118190.0,0.70028]
[1753729699184,1.28651159,118200.0,118190.0,0.5334544]
[1753729699383,1.28651159,118200.0,118190.0,0.3700936]
[1753729699578,0.1692234,118190.0,118180.0,0.48075174]
[1753729699883,0.96822288,118190.0,118180.0,1.18103174]
[1753729700775,0.96822288,118190.0,118180.0,1.18203174]
[1753729701281,0.96822288,118190.0,118180.0,1.22736174]
[1753729701674,0.96822288,118190.0,118180.0,0.86406174]
[1753729701890,0.96822288,118190.0,118180.0,0.36926]
[1753729702074,0.96822288,118190.0,118180.0,0.70128]
[1753729702276,0.96822288,118190.0,118180.0,0.5325636]
[1753729702488,0.96822288,118190.0,118170.0,1.333]
[1753729702489,0.3636577,118180.0,118170.0,1.333]
[1753729702786,0.97907718,118180.0,118170.0,1.13881759]
[1753729703379,0.97907718,118180.0,118170.0,1.18114799]
[1753729703884,0.97907718,118180.0,118170.0,1.18214799]
[1753729704784,0.97907718,118180.0,118170.0,1.18114799]
[1753729705385,0.97907718,118180.0,118170.0,1.13881759]
[1753729705781,0.97907718,118180.0,118170.0,1.09255749]
[1753729706183,0.97882856,118180.0,118170.0,1.11518445]
[1753729707586,0.97882856,118180.0,118170.0,1.15669454]
[1753729707885,0.97882856,118180.0,118170.0,1.11518445]
[1753729710683,0.97882856,118180.0,118170.0,1.15753702]
[1753729711079,0.97882856,118180.0,118170.0,1.11518445]
[1753729711295,0.97882856,118180.0,118170.0,0.87001455]
[1753729711484,0.97886856,118180.0,118170.0,0.87001455]
[1753729711685,0.97886856,118180.0,118170.0,0.16973455]
[1753729712085,0.97886856,118180.0,118170.0,0.28518413]
[1753729712292,0.97886856,118180.0,118170.0,0.43706455]
[1753729712992,1.46641157,118180.0,118170.0,6e-08]
[1753729713387,1.14810856,118180.0,118170.0,6e-08]
[1753729713796,1.14810856,118180.0,118170.0,0.04517006]
[1753729715494,1.14810856,118180.0,118170.0,0.00379726]
[1753729715690,0.646962,118170.0,118160.0,0.82166075]
[1753729715884,1.99746587,118170.0,118160.0,0.01883235]
[1753729716092,0.3636863,118160.0,118150.0,1.25310015]
[1753729716388,1.29716017,118160.0,118150.0,1.23055]
[1753729716693,1.29716017,118160.0,118150.0,1.29702591]
[1753729717993,1.29716017,118160.0,118150.0,0.45456746]
[1753729719188,1.29716017,118160.0,118150.0,5e-08]
[1753729719388,0.6469906,118150.0,118140.0,1.15877]
[1753729719593,0.97887146,118150.0,118140.0,1.15877]
[1753729719989,0.97887146,118150.0,118140.0,0.744099]
[1753729720189,0.97887146,118150.0,118140.0,0.164559]
[1753729720389,0.97887146,118150.0,118140.0,0.2853015]
[1753729720584,0.97887146,118150.0,118140.0,0.23994]
[1753729720795,0.97887146,118150.0,118140.0,0.33871]
[1753729720996,0.97887146,118150.0,118140.0,0.40563055]
[1753729721890,0.97887146,118150.0,118140.0,0.4484721]
[1753729722692,0.97887146,118150.0,118140.0,0.5196421]
[1753729722893,0.97887146,118150.0,118140.0,0.4864089]
[1753729723693,0.97887146,118150.0,118140.0,0.11734]
[1753729723901,0.6470049,118140.0,118130.0,0.92082]
[1753729724093,0.97888576,118140.0,118130.0,0.1174843]
[1753729724392,0.6470193,118130.0,118120.0,0.04325459]
[1753729724598,0.6470336,118120.0,118110.0,0.77013824]
[1753729724799,1.28363962,118120.0,118110.0,0.88130554]
[1753729724992,1.28363962,118120.0,118110.0,0.18106554]
[1753729725196,1.28163962,118120.0,118110.0,0.18106554]
[1753729726190,0.96333661,118120.0,118110.0,0.22237211]
[1753729726391,0.97736237,118120.0,118110.0,0.22237211]
[1753729727295,1.29566538,118120.0,118110.0,0.22226387]
[1753729727501,1.29566538,118120.0,118110.0,0.24446907]
[1753729727703,1.29566538,118120.0,118110.0,0.0897525]
[1753729728197,1.29566538,118120.0,118110.0,0.0222052]
[1753729728404,1.29566538,118120.0,118110.0,1e-07]
[1753729728697,1.01237538,118120.0,118110.0,1e-07]
[1753729729197,0.3637579,118110.0,118100.0,1.08818807]
[1753729729402,0.97937667,118110.0,118100.0,1.08818807]
[1753729729603,0.97937667,118110.0,118100.0,0.88009897]
[1753729730098,0.97937667,118110.0,118100.0,0.06640897]
[1753729730299,0.3637722,118100.0,118090.0,1.0227391]
[1753729730506,0.96536521,118100.0,118090.0,1.0227391]
[1753729730897,0.96536521,118100.0,118090.0,1.06579184]
[1753729732607,0.96536521,118100.0,118090.0,1.06679184]
[1753729732804,0.96536521,118100.0,118090.0,0.04505274]
[1753729733104,0.9794533,118100.0,118090.0,0.78895274]
[1753729733306,0.96536521,118100.0,118090.0,0.78895274]
[1753729733508,0.96536521,118100.0,118090.0,0.85874274]
[1753729734006,0.96536521,118100.0,118090.0,0.85774274]
[1753729734407,0.96536521,118100.0,118090.0,0.92699992]
[1753729735105,0.96536521,118100.0,118090.0,0.88394718]
[1753729735300,0.96536521,118100.0,118090.0,0.001]
[1753729735807,0.96536521,118100.0,118090.0,1e-07]
[1753729736006,0.97944515,118100.0,118090.0,1e-07]
[1753729738210,1.67972515,118100.0,118090.0,0.1134101]
[1753729738506,1.67972515,118100.0,118090.0,0.0436201]
[1753729739704,1.39643515,118100.0,118090.0,1e-07]
[1753729739907,1.71473816,118100.0,118090.0,1e-07]
[1753729740108,0.19198,118090.0,118070.0,0.2090891]
[1753729740309,1.21188692,118080.0,118070.0,0.34462578]
[1753729740505,0.6434309,118080.0,118070.0,0.34462578]
[1753729740699,0.96173391,118080.0,118070.0,0.34462578]
[1753729741199,0.96173391,118080.0,118070.0,0.34362578]
[1753729741406,0.96173391,118080.0,118070.0,0.34462578]
[1753729741904,0.6434309,118080.0,118070.0,0.39053871]
[1753729742105,0.96173391,118080.0,118070.0,0.39253871]
[1753729742307,0.96177391,118080.0,118070.0,0.39253871]
[1753729743404,0.96177391,118080.0,118070.0,0.46058883]
[1753729744010,0.1694209,118080.0,118070.0,0.77889184]
[1753729744501,0.1258009,118080.0,118070.0,0.97083719]
[1753729744705,0.1258009,118080.0,118070.0,1.00096383]
[1753729745015,0.1258009,118080.0,118070.0,0.9784285]
[1753729746116,0.1258009,118080.0,118070.0,2.5688125]
[1753729746301,0.1270308,118090.0,118080.0,0.1693809]
[1753729746302,0.254065,118090.0,118080.0,0.1693809]
[1753729746610,0.254065,118090.0,118080.0,1.47744301]
[1753729746815,0.254065,118090.0,118080.0,1.89681101]
[1753729748009,0.254065,118090.0,118080.0,1.89781101]
[1753729748215,0.254065,118090.0,118080.0,1.89981101]
[1753729749315,0.254065,118090.0,118080.0,1.94514537]
[1753729749719,0.254065,118090.0,118080.0,1.89976378]
[1753729750212,0.254065,118090.0,118080.0,1.94509814]
[1753729750414,0.0846814,118100.0,118080.0,1.99968891]
[1753729750718,0.2964147,118100.0,118090.0,0.54135665]
[1753729750925,0.3455047,118100.0,118090.0,0.22260012]
[1753729752916,0.2540736,118100.0,118090.0,0.54090313]
[1753729753115,0.2540736,118100.0,118090.0,0.91834423]
[1753729753319,0.2540736,118100.0,118090.0,0.93357165]
[1753729754526,0.5860236,118100.0,118090.0,1.32326864]
[1753729754824,0.3031636,118100.0,118090.0,1.32314864]
[1753729755025,0.3031636,118100.0,118090.0,1.32306864]
[1753729755524,0.2540736,118100.0,118090.0,1.64137165]
[1753729756113,0.2540736,118100.0,118090.0,1.59603729]
[1753729756313,0.3031636,118100.0,118090.0,1.59603729]
[1753729758226,0.3031636,118100.0,118090.0,1.6412321]
[1753729758628,0.3031636,118100.0,118090.0,1.59603729]
[1753729758825,0.3031636,118100.0,118090.0,1.6412321]
[1753729761725,0.25643992,118100.0,118090.0,1.6412321]
[1753729761925,0.29878102,118100.0,118090.0,1.6412321]
[1753729762331,0.25124102,118100.0,118090.0,1.6412321]
[1753729762533,0.29358212,118100.0,118090.0,1.6412321]
[1753729763634,0.29358212,118100.0,118090.0,1.4718801]
[1753729765337,0.4639746,118110.0,118100.0,6.87577008]
[1753729765632,0.6333124,118110.0,118100.0,7.18223268]
[1753729767438,0.6807924,118110.0,118100.0,7.18223268]
[1753729768433,0.2116724,118110.0,118100.0,7.18223268]
[1753729768634,0.2591524,118110.0,118100.0,7.50053569]
[1753729769131,0.1693378,118110.0,118100.0,7.62754309]
[1753729769537,0.3014813,118120.0,118110.0,0.2490179]
[1753729769739,0.3014813,118120.0,118110.0,1.34625707]
[1753729769934,0.3014813,118120.0,118110.0,1.32367441]
[1753729770242,0.3014813,118120.0,118110.0,1.0053714]
[1753729770436,0.3474113,118120.0,118110.0,1.0053714]
[1753729770637,0.6912213,118120.0,118110.0,1.0053714]
[1753729770839,0.6922213,118120.0,118110.0,1.0053714]
[1753729771938,0.7237013,118120.0,118110.0,7.71178928]
[1753729772940,0.7237013,118120.0,118110.0,8.03009229]
[1753729773137,0.0423675,118130.0,118120.0,0.1693237]
[1753729773138,0.0846972,118130.0,118120.0,0.1693237]
[1753729773442,0.6983885,118140.0,118130.0,0.2489894]
[1753729773638,0.6983885,118140.0,118130.0,1.5535698]
[1753729773939,0.6983885,118140.0,118130.0,1.25392734]
[1753729774139,0.6983885,118140.0,118130.0,1.23133255]
[1753729774340,0.6983885,118140.0,118130.0,1.22382296]
[1753729774740,0.6983885,118140.0,118130.0,1.29153467]
[1753729776342,0.7003885,118140.0,118130.0,1.29153467]
[1753729777443,0.7003885,118140.0,118130.0,1.2927615]
[1753729778540,0.35945,118140.0,118130.0,1.2927615]
[1753729778746,0.71856391,118150.0,118140.0,6.45010438]
[1753729778942,0.73147551,118150.0,118140.0,6.49605197]
[1753729779941,0.73347551,118150.0,118140.0,6.49605197]
[1753729780546,0.73347551,118150.0,118140.0,6.53914349]
[1753729780748,1.01351551,118150.0,118140.0,6.53914349]
[1753729782953,1.01351551,118150.0,118140.0,6.74723259]
[1753729783651,0.6528923,118150.0,118140.0,6.74723259]
[1753729783845,0.4534022,118160.0,118150.0,5.26999387]
[1753729784155,0.77170521,118160.0,118150.0,5.9941879]
[1753729784449,0.4534022,118160.0,118150.0,6.1644685]
[1753729784650,0.2962222,118160.0,118150.0,6.1644685]
[1753729784851,0.2962222,118160.0,118150.0,6.48277151]
[1753729785453,0.2962222,118160.0,118150.0,6.1644685]
[1753729785950,0.66045521,118160.0,118150.0,6.18706206]
[1753729786143,0.98802521,118160.0,118150.0,5.9951879]
[1753729786546,0.98802521,118160.0,118150.0,5.2943479]
[1753729786748,0.98802521,118160.0,118150.0,5.9951879]
[1753729787253,0.98802521,118160.0,118150.0,6.18706216]
[1753729787954,0.98802521,118160.0,118150.0,6.01778146]
[1753729788455,0.98802521,118160.0,118150.0,6.18706206]
[1753729788643,0.98802521,118160.0,118150.0,6.01778146]
[1753729788848,0.98802521,118160.0,118150.0,6.22587056]
[1753729789754,0.98802521,118160.0,118150.0,6.39515116]
[1753729789955,0.98802521,118160.0,118150.0,6.22587056]
[1753729790255,0.174752,118170.0,118160.0,4.28196866]
[1753729790553,0.174752,118170.0,118160.0,5.00612269]
[1753729790554,0.49305501,118170.0,118160.0,5.00612269]
[1753729792253,0.49649501,118170.0,118160.0,5.00612269]
[1753729795753,0.5093488,118170.0,118160.0,5.00612269]
[1753729796255,0.169289,118180.0,118170.0,3.63540986]
[1753729796446,0.97513272,118180.0,118170.0,3.42872379]
[1753729796647,1.39437272,118180.0,118170.0,3.58795247]
[1753729796852,1.07606971,118180.0,118170.0,3.20155487]
[1753729797059,1.07606971,118180.0,118170.0,3.07546107]
[1753729797252,1.07606971,118180.0,118170.0,2.06810516]
[1753729797451,1.07606971,118180.0,118170.0,2.1474937]
[1753729797651,1.07606971,118180.0,118170.0,2.0028709]
[1753729797959,1.39437272,118180.0,118170.0,1.0792837]
[1753729798158,1.07606971,118180.0,118170.0,1.6694955]
[1753729798357,1.07606971,118180.0,118170.0,1.6131376]
[1753729799163,0.82606971,118180.0,118170.0,1.6131376]
[1753729799960,0.82606971,118180.0,118170.0,1.5845008]
[1753729800654,0.82606971,118180.0,118170.0,0.8838208]
[1753729800854,1.39437272,118180.0,118170.0,0.6407062]
[1753729801059,1.39437272,118180.0,118170.0,0.3614695]
[1753729801266,1.07606971,118180.0,118170.0,0.0889278]
[1753729801553,0.201352,118170.0,118160.0,0.70068]
[1753729801759,0.54164501,118170.0,118160.0,0.99283297]
[1753729802061,0.71090102,118170.0,118160.0,0.02350297]
[1753729802262,1.02920403,118170.0,118160.0,0.72414297]
[1753729802455,1.02920403,118170.0,118160.0,0.00077297]
[1753729802659,1.02920403,118170.0,118150.0,0.236]
[1753729802866,0.48756931,118160.0,118150.0,1.04696]
[1753729803058,0.2962119,118170.0,118160.0,0.5904863]
[1753729803259,0.2962119,118170.0,118160.0,0.73952301]
[1753729803462,0.2962119,118170.0,118160.0,0.95655931]
[1753729803654,0.2962119,118170.0,118160.0,0.46899]
[1753729804960,0.61451491,118170.0,118160.0,0.46899]
[1753729805160,0.61451491,118170.0,118160.0,1.48793301]
[1753729805161,0.2962119,118170.0,118160.0,1.48793301]
[1753729805464,0.163528,118170.0,118160.0,1.65719931]
[1753729805662,0.2481602,118170.0,118160.0,1.65719931]
[1753729806064,0.2115824,118170.0,118160.0,1.74182681]
[1753729806359,0.2538985,118170.0,118160.0,1.74182681]
[1753729806864,0.0846156,118190.0,118170.0,0.7661758]
[1753729807162,0.253839,118190.0,118180.0,1.45980071]
[1753729808469,0.26665846,118190.0,118180.0,1.45980071]
[1753729809469,0.26665846,118190.0,118180.0,1.72270071]
[1753729811864,0.26665846,118190.0,118180.0,1.74529427]
[1753729813055,0.26665846,118190.0,118180.0,1.57605657]
[1753729813260,0.31618846,118190.0,118180.0,1.55346301]
[1753729814367,0.31618846,118190.0,118180.0,1.74529417]
[1753729814763,0.31618846,118190.0,118180.0,1.76861045]
[1753729814963,0.31618846,118190.0,118180.0,1.59937285]
[1753729815164,0.26665846,118190.0,118180.0,1.76861045]
[1753729817174,0.253839,118190.0,118180.0,1.76861045]
[1753729819770,0.303369,118190.0,118180.0,1.76861045]
[1753729820372,0.303369,118190.0,118180.0,1.59937285]
[1753729820571,0.303369,118190.0,118180.0,1.57677929]
[1753729820777,0.303369,118190.0,118180.0,1.74601669]
[1753729821074,0.303369,118190.0,118180.0,1.76861025]
[1753729821667,0.303369,118190.0,118180.0,1.74601669]
[1753729821972,0.303369,118190.0,118180.0,1.76853365]
[1753729823171,0.303369,118190.0,118180.0,1.7459855]
[1753729824178,0.303409,118190.0,118180.0,1.7459855]
[1753729826769,0.303409,118190.0,118180.0,1.5767481]
[1753729826970,0.335309,118190.0,118180.0,1.745985]
[1753729828275,0.253879,118190.0,118180.0,0.45542199]
[1753729828476,1.04658201,118190.0,118180.0,0.98622509]
[1753729828676,1.04658201,118190.0,118180.0,0.93771669]
[1753729829077,1.05947813,118190.0,118180.0,0.9144316]
[1753729829282,1.05947813,118190.0,118180.0,0.7500663]
[1753729829484,1.05947813,118190.0,118180.0,0.0142313]
[1753729829688,1.05947813,118190.0,118180.0,0.7000401]
[1753729829886,1.05947813,118190.0,118180.0,0.6710868]
[1753729830089,1.05947813,118190.0,118180.0,0.563234]
[1753729830292,1.05947813,118190.0,118180.0,0.4893407]
[1753729830589,1.05947813,118190.0,118180.0,0.3678869]
[1753729830790,0.6436365,118180.0,118170.0,0.42172]
[1753729831083,0.65653262,118180.0,118170.0,1.14504982]
[1753729831287,0.97483563,118180.0,118170.0,1.14504982]
[1753729836990,0.97483563,118180.0,118170.0,1.14500982]
[1753729841589,0.97483563,118180.0,118170.0,1.14484982]
[1753729842902,0.97487563,118180.0,118170.0,1.14484982]
[1753729844402,0.97487563,118180.0,118170.0,0.44504982]
[1753729844609,0.97487563,118180.0,118170.0,1.14480982]
[1753729847005,0.97487563,118180.0,118170.0,1.18046982]
[1753729849202,0.65657262,118180.0,118170.0,1.18046982]
[1753729849400,0.18217262,118180.0,118170.0,1.69057098]
[1753729849707,0.18217262,118180.0,118170.0,1.66802283]
[1753729850004,0.18217262,118180.0,118170.0,1.69057098]
[1753729851703,0.16925,118170.0,118160.0,0.21980682]
[1753729851898,0.98557913,118170.0,118160.0,1.1222]
[1753729852299,0.98557913,118170.0,118160.0,1.15230682]
[1753729852505,0.98557913,118170.0,118160.0,1.18796682]
[1753729852895,0.98557913,118170.0,118160.0,1.15786]
[1753729855310,0.98557913,118170.0,118160.0,1.18796682]
[1753729855611,0.98573238,118170.0,118160.0,1.18796682]
[1753729856817,0.98573238,118170.0,118160.0,1.45086682]
[1753729857511,0.98573238,118170.0,118160.0,1.42076]
[1753729858016,0.98573238,118170.0,118160.0,1.5900243]
[1753729858219,0.66742937,118170.0,118160.0,1.62013112]
[1753729859711,0.66742937,118170.0,118160.0,1.45086682]
[1753729860112,0.66742937,118170.0,118160.0,1.62013082]
[1753729860308,0.66742937,118170.0,118160.0,1.45086682]
[1753729860916,0.98573238,118170.0,118160.0,1.45086682]
[1753729862013,0.66742937,118170.0,118160.0,1.45086682]
[1753729863326,0.98573238,118170.0,118160.0,1.45086682]
[1753729863715,0.98573238,118170.0,118160.0,1.4741543]
[1753729864017,0.66742937,118170.0,118160.0,1.6434181]
[1753729864215,0.98573238,118170.0,118160.0,1.4741543]
[1753729865318,0.98573238,118170.0,118160.0,0.9439381]
[1753729865506,0.98573238,118170.0,118160.0,1.6430181]
[1753729865914,0.98573238,118170.0,118160.0,1.4737543]
[1753729866724,0.98573238,118170.0,118160.0,1.6430181]
[1753729866912,0.18229937,118170.0,118160.0,1.96132111]
[1753729867111,0.23074937,118170.0,118160.0,1.96132111]
[1753729867716,0.18229887,118170.0,118160.0,1.96132111]
[1753729868510,0.18229887,118170.0,118160.0,2.00651592]
[1753729871119,0.18229887,118170.0,118160.0,1.96132111]
[1753729871421,0.1692495,118170.0,118160.0,1.9764091]
[1753729872020,0.18230849,118170.0,118160.0,1.9764091]
[1753729873321,0.1692495,118170.0,118160.0,1.9764091]
[1753729873521,0.2176995,118170.0,118160.0,1.9764091]
[1753729873722,0.2176995,118170.0,118160.0,1.65810609]
[1753729874524,0.23075565,118170.0,118160.0,1.65810609]
[1753729875323,0.23075565,118170.0,118160.0,1.68827928]
[1753729876924,0.23075565,118170.0,118160.0,1.64308447]
[1753729879830,0.23075565,118170.0,118160.0,1.68827928]
[1753729880326,0.23075565,118170.0,118160.0,1.64308447]
[1753729883020,0.23075565,118170.0,118160.0,1.96138748]
[1753729884235,0.23075565,118170.0,118160.0,1.96082748]
[1753729884731,0.23075565,118170.0,118160.0,1.8065853]
[1753729884930,0.26168565,118170.0,118160.0,0.77473008]
[1753729885130,0.63338565,118170.0,118160.0,1.47321008]
[1753729886131,0.63338565,118170.0,118160.0,1.64247448]
[1753729886335,0.47153565,118170.0,118160.0,1.64247448]
[1753729888537,0.31885565,118170.0,118160.0,1.93061489]
[1753729888834,0.28792565,118170.0,118160.0,1.93061489]
[1753729892336,0.28792565,118170.0,118160.0,1.61231188]
[1753729892936,0.28792565,118170.0,118160.0,1.93061489]
[1753729893331,0.28792565,118170.0,118160.0,1.61231188]
[1753729894340,0.28792565,118170.0,118160.0,1.65750669]
[1753729894539,0.31885565,118170.0,118160.0,1.65750669]
[1753729901450,0.31885565,118170.0,118160.0,1.65690669]
[1753729904447,0.31885565,118170.0,118160.0,1.65682669]
[1753729907950,0.47153565,118170.0,118160.0,1.48756229]
[1753729908150,1.02141866,118170.0,118160.0,1.45070229]
[1753729908355,1.02141866,118170.0,118160.0,1.40550748]
[1753729908857,1.02141866,118170.0,118160.0,1.43569412]
[1753729909056,1.02141866,118170.0,118160.0,1.44220412]
[1753729909253,1.02141866,118170.0,118160.0,1.01393412]
[1753729909457,1.02141866,118170.0,118160.0,1.01493412]
[1753729909858,1.02141866,118170.0,118160.0,0.98474748]
[1753729910056,1.02141866,118170.0,118160.0,0.02428748]
[1753729910256,1.02141866,118170.0,118160.0,0.72180748]
[1753729911159,1.02141866,118170.0,118160.0,0.72080748]
[1753729911761,1.02141866,118170.0,118160.0,0.74343433]
[1753729912061,1.02141866,118170.0,118160.0,0.74443433]
[1753729912856,1.02141866,118170.0,118160.0,0.04691433]
[1753729913064,1.02141866,118170.0,118160.0,0.74435433]
[1753729913268,1.02141866,118170.0,118160.0,1.06975433]
[1753729913457,1.02141866,118170.0,118160.0,1.06479783]
[1753729913657,0.23947565,118170.0,118160.0,1.66622084]
[1753729914060,0.23947565,118170.0,118160.0,1.70377063]
[1753729914558,0.07026997,118170.0,118160.0,2.02207364]
[1753729914762,0.1692859,118180.0,118170.0,0.5678891]
[1753729914964,4e-05,118180.0,118170.0,2.29600329]
[1753729915162,4e-05,118180.0,118170.0,2.31105196]
[1753729915465,4e-05,118190.0,118180.0,0.48853761]
[1753729915667,4e-05,118190.0,118180.0,1.23931889]
[1753729915966,4e-05,118190.0,118180.0,1.20918509]
[1753729916155,4e-05,118190.0,118180.0,1.25437158]
[1753729916359,4e-05,118190.0,118180.0,1.25434315]
[1753729916764,0.1692603,118190.0,118180.0,1.25434315]
[1753729918763,0.1692603,118190.0,118180.0,1.36910815]
[1753729920469,0.2147203,118190.0,118180.0,1.36910815]
[1753729921670,0.1692603,118190.0,118180.0,1.36910815]
[1753729923269,0.1692603,118190.0,118180.0,1.39915781]
[1753729923972,0.2147203,118190.0,118180.0,1.39915781]
[1753729924269,0.2147203,118190.0,118180.0,1.35399975]
[1753729924670,0.2147203,118190.0,118180.0,1.36910815]
[1753729924866,0.1692603,118190.0,118180.0,0.96469819]
[1753729925074,0.6469103,118190.0,118180.0,0.48647212]
[1753729925369,0.6469103,118190.0,118180.0,1.01403752]
[1753729925570,0.6469103,118190.0,118180.0,1.18327462]
[1753729926164,0.6469103,118190.0,118180.0,0.48547462]
[1753729926365,0.6469103,118190.0,118180.0,1.01299752]
[1753729926568,0.6469103,118190.0,118180.0,1.20477382]
[1753729926866,1.07997831,118190.0,118180.0,0.48547462]
[1753729927372,0.6469103,118190.0,118180.0,0.5090132]
[1753729927574,0.6469103,118190.0,118180.0,1.2056932]
[1753729929864,0.6469103,118190.0,118180.0,0.47896316]
[1753729930063,0.6469103,118190.0,118180.0,1.17552316]
[1753729931970,0.6469103,118190.0,118180.0,0.47796316]
[1753729932172,0.6469103,118190.0,118180.0,1.17548316]
[1753729934075,0.6469103,118190.0,118180.0,0.47896316]
[1753729934280,0.6469103,118190.0,118180.0,1.17544316]
[1753729934476,0.6469103,118190.0,118180.0,1.17532316]
[1753729934977,0.6469103,118190.0,118180.0,1.2053732]
[1753729935180,0.6469103,118190.0,118180.0,1.17532316]
[1753729935374,0.6469103,118190.0,118180.0,1.2053732]
[1753729936577,0.6469103,118190.0,118180.0,1.18283462]
[1753729936777,0.6469103,118190.0,118180.0,1.20537643]
[1753729938376,0.6469103,118190.0,118180.0,1.61590263]
[1753729943285,0.6469103,118190.0,118180.0,1.63101065]
[1753729945186,0.6469103,118190.0,118180.0,1.63001065]
[1753729945485,0.6469103,118190.0,118180.0,1.63101065]
[1753729946084,0.6469103,118190.0,118180.0,1.63001065]
[1753729946286,0.6469103,118190.0,118180.0,1.19693544]
[1753729946481,1.07997831,118190.0,118180.0,1.19793544]
[1753729946982,1.07997831,118190.0,118180.0,0.50157544]
[1753729947188,1.07997831,118190.0,118180.0,1.19641544]
[1753729947382,1.07997831,118190.0,118180.0,1.19741544]
[1753729949190,1.07997831,118190.0,118180.0,1.19641544]
[1753729949391,1.09305279,118190.0,118180.0,1.19741544]
[1753729950194,1.09305279,118190.0,118180.0,1.19641544]
[1753729950489,1.09305279,118190.0,118180.0,1.19741544]
[1753729950889,0.65998478,118190.0,118180.0,1.19741544]
[1753729951992,0.65998478,118190.0,118180.0,1.19717544]
[1753729953984,0.65998478,118190.0,118180.0,1.63024345]
[1753729955297,0.65998478,118190.0,118180.0,1.19717544]
[1753729956395,0.65998478,118190.0,118180.0,1.63024345]
[1753729956896,0.65998478,118190.0,118180.0,1.19717544]
[1753729960598,1.09305279,118190.0,118180.0,1.19717544]
[1753729960996,1.09305279,118190.0,118180.0,1.19673624]
[1753729961794,0.65998478,118190.0,118180.0,1.19673624]
[1753729964399,0.65998478,118190.0,118180.0,0.50157624]
[1753729964607,0.65998478,118190.0,118180.0,1.19665624]
[1753729967499,0.65998478,118190.0,118180.0,1.15149818]
[1753729968503,0.65998478,118190.0,118180.0,1.19665624]
[1753729968905,0.65998478,118190.0,118180.0,1.15149818]
[1753729969808,0.65998478,118190.0,118180.0,0.45641818]
[1753729970007,0.65998478,118190.0,118180.0,1.15125818]
[1753729971504,0.65998478,118190.0,118180.0,0.28718748]
[1753729971714,1.09305279,118190.0,118180.0,0.31636791]
[1753729972008,1.09305279,118190.0,118180.0,1.01181332]
[1753729972009,1.09322955,118190.0,118180.0,1.01181332]
[1753729972212,1.09322955,118190.0,118180.0,0.74891332]
[1753729972413,1.09322955,118190.0,118180.0,0.74036988]
[1753729972725,1.09322955,118190.0,118180.0,0.74136988]
[1753729972921,1.09322955,118190.0,118180.0,0.70750898]
[1753729973823,1.09322955,118190.0,118180.0,0.69464]
[1753729974718,0.1858,118170.0,118160.0,1.24525849]
[1753729974917,0.1858,118170.0,118160.0,1.89462043]
[1753729974918,1.08600475,118170.0,118160.0,1.89462043]
[1753729975714,1.08600475,118170.0,118160.0,1.20010043]
[1753729975919,1.08600475,118170.0,118160.0,1.89758043]
[1753729976817,1.08600475,118170.0,118160.0,1.8674]
[1753729977019,1.08600475,118170.0,118160.0,1.89758043]
[1753729977213,1.08600475,118170.0,118160.0,1.89658043]
[1753729977416,1.08600475,118170.0,118160.0,1.8674]
[1753729977814,1.08600475,118170.0,118160.0,1.8664]
[1753729978019,1.08600475,118170.0,118160.0,1.17092]
[1753729978219,1.08600475,118170.0,118160.0,1.86532]
[1753729979225,0.18249674,118170.0,118160.0,2.46764751]
[1753729979422,0.23035674,118170.0,118160.0,2.46764751]
[1753729979820,0.01325124,118170.0,118160.0,2.46764751]
[1753729980021,0.2115522,118180.0,118170.0,0.1692451]
[1753729980222,0.2115522,118180.0,118170.0,0.60231311]
[1753729980422,0.2115522,118180.0,118170.0,0.63249354]
[1753729980926,0.2115522,118180.0,118170.0,0.64747117]
[1753729983127,0.2594122,118180.0,118170.0,0.64747117]
[1753729984527,0.2594122,118180.0,118170.0,0.64847117]
[1753729984928,0.2594122,118180.0,118170.0,0.23828633]
[1753729985129,0.2594122,118180.0,118170.0,0.67135434]
[1753729987023,0.3016975,118190.0,118180.0,0.1702309]
[1753729987218,0.3016975,118190.0,118180.0,1.36731986]
[1753729987620,0.3016975,118190.0,118180.0,1.41247792]
[1753729988027,0.3800945,118190.0,118180.0,1.41247272]
[1753729989127,0.3800945,118190.0,118180.0,1.38238667]
[1753729989522,0.2170845,118190.0,118180.0,1.38238667]
[1753729989728,0.3439847,118200.0,118180.0,1.77219756]
[1753729989936,0.3016807,118200.0,118190.0,0.51120949]
[1753729990231,0.2593771,118200.0,118190.0,0.53409266]
[1753729991028,0.5010071,118200.0,118190.0,0.53409266]
[1753729991223,0.6819571,118200.0,118190.0,0.53409266]
[1753729992930,0.6819571,118200.0,118190.0,0.79699266]
[1753729994636,0.6819571,118200.0,118190.0,0.86623629]
[1753729996735,0.3379971,118200.0,118190.0,0.86623629]
[1753729997138,0.5010071,118200.0,118190.0,0.86623629]
[1753729997329,0.6819571,118200.0,118190.0,0.86623629]
[1753729999035,0.2593771,118200.0,118190.0,0.86623629]
[1753729999429,0.1692042,118200.0,118190.0,0.86623629]
[1753729999634,0.2170642,118200.0,118190.0,0.86623629]
[1753730004847,0.3865042,118200.0,118190.0,0.55432414]
[1753730005048,0.6512842,118200.0,118190.0,0.98739215]
[1753730005343,0.6512842,118200.0,118190.0,0.72449215]
[1753730007448,0.6512842,118200.0,118190.0,0.73957097]
[1753730010149,0.6512842,118200.0,118190.0,0.73956859]
[1753730014556,0.6512842,118200.0,118190.0,0.30650058]
[1753730016153,0.6512842,118200.0,118190.0,0.73956859]
[1753730018256,0.6512842,118200.0,118190.0,0.69441053]